fUSD/lending_fUSD_20240919
["ID","MTS","AMOUNT","RATE_DAILY","PERIOD"]
[338531675,1726721455596,-2478.33,0.00013547,2]
[338531676,1726721455605,-1133.03,0.00013547,2]
[338531677,1726721455615,-529.43,0.00013547,2]
[338531678,1726721455624,-500.0,0.00013547,2]
[338531679,1726721455633,-500.0,0.00013547,2]
[338531680,1726721455643,-1731.86,0.00013547,2]
[338531681,1726721455653,-600.01,0.00013547,2]
[338531682,1726721455662,-754.81,0.00013547,2]
[338531683,1726721455671,-531.92,0.00013547,2]
[338531684,1726721455680,-500.0,0.00013547,2]
[338531685,1726721455690,-500.0,0.00013547,2]
[338531686,1726721455700,-500.0,0.00013547,2]
[338531687,1726721455711,-861.22,0.00013547,2]
[338531688,1726721455721,-500.0,0.00013547,2]
[338531689,1726721455731,-647.3,0.00013547,2]
[338531690,1726721455741,-1132.4,0.00013547,2]
[338531691,1726721455750,-500.0,0.00013547,2]
[338531692,1726721455760,-500.0,0.00013547,2]
[338531693,1726721455769,-3184.39,0.00013547,2]
[338531694,1726721455779,-1351.79,0.00013547,2]
[338531695,1726721455788,-500.0,0.00013547,2]
[338531696,1726721455798,-1087.97,0.00013547,2]
[338531697,1726721455808,-500.0,0.00013547,2]
[338531698,1726721455819,-3249.66,0.00013547,2]
[338531699,1726721455829,-856.38,0.00013547,2]
[338531700,1726721455842,-678.37,0.00013547,2]
[338531701,1726721455853,-500.0,0.00013547,2]
[338531702,1726721455862,-1823.36,0.00013547,2]
[338531703,1726721455872,-500.0,0.00013547,2]
[338531704,1726721455881,-929.22,0.00013547,2]
[338531705,1726721455891,-747.18,0.00013547,2]
[338531706,1726721455900,-500.0,0.00013547,2]
[338531707,1726721455910,-2098.69,0.00013547,2]
[338531708,1726721455922,-580.79,0.00013547,2]
[338531709,1726721455932,-876.33,0.00013547,2]
[338531710,1726721455941,-675.87,0.00013547,2]
[338531711,1726721455951,-849.52,0.00013547,2]
[338531712,1726721455960,-726.23,0.00013547,2]
[338531713,1726721455980,-500.0,0.00013547,2]
[338531714,1726721455990,-3894.5,0.00013547,2]
[338531715,1726721455999,-768.99,0.00013547,2]
[338531716,1726721456009,-500.0,0.00013547,2]
[338531717,1726721456018,-514.81,0.00013547,2]
[338531718,1726721456028,-1678.77,0.00013547,2]
[338531719,1726721456037,-3588.29,0.00013547,2]
[338531720,1726721456046,-561.88,0.00013547,2]
[338531721,1726721456055,-3612.63,0.00013547,2]
[338531722,1726721456065,-500.0,0.00013547,2]
[338531723,1726721456074,-500.0,0.00013547,2]
[338531724,1726721456083,-1165.21,0.00013547,2]
[338531725,1726721456093,-1886.85,0.00013547,2]
[338531726,1726721456102,-2851.24,0.00013547,2]
[338531727,1726721456112,-5211.22,0.00013547,2]
[338531728,1726721456121,-2563.28,0.00013547,2]
[338531729,1726721456130,-500.0,0.00013547,2]
[338531730,1726721456139,-628.73,0.00013547,2]
[338531731,1726721456149,-747.64,0.00013547,2]
[338531732,1726721456159,-1122.98,0.00013547,2]
[338531733,1726721456168,-510.27,0.00013547,2]
[338531734,1726721456178,-4847.2,0.00013547,2]
[338531735,1726721456188,-857.76,0.00013547,2]
[338531736,1726721456197,-1711.51,0.00013547,2]
[338531737,1726721456206,-500.0,0.00013547,2]
[338531738,1726721456220,-1224.38,0.00013547,2]
[338531739,1726721456229,-5936.67,0.00013547,2]
[338531740,1726721456238,-500.0,0.00013547,2]
[338531741,1726721456247,-729.36,0.00013547,2]
[338531742,1726721456256,-2012.25,0.00013547,2]
[338531743,1726721456265,-500.0,0.00013547,2]
[338531744,1726721456274,-1526.2,0.00013547,2]
[338531745,1726721456283,-2702.45,0.00013547,2]
[338531746,1726721456292,-500.0,0.00013547,2]
[338531747,1726721456301,-500.0,0.00013547,2]
[338531748,1726721456310,-500.0,0.00013547,2]
[338531749,1726721456319,-595.84,0.00013547,2]
[338531750,1726721456330,-2589.63,0.00013547,2]
[338531751,1726721456339,-500.0,0.00013547,2]
[338531752,1726721456348,-537.13,0.00013547,2]
[338531753,1726721456357,-500.0,0.00013547,2]
[338531754,1726721456366,-1383.21,0.00013547,2]
[338531755,1726721456376,-500.0,0.00013547,2]
[338531756,1726721456386,-500.0,0.00013547,2]
[338531757,1726721456396,-1474.98,0.00013547,2]
[338531758,1726721456405,-1873.98,0.00013547,2]
[338531759,1726721456415,-1686.47,0.00013547,2]
[338531760,1726721456428,-500.0,0.00013547,2]
[338531761,1726721456437,-500.0,0.00013547,2]
[338531762,1726721456446,-620.39,0.00013547,2]
[338531763,1726721456455,-1845.18,0.00013547,2]
[338531764,1726721456467,-791.54,0.00013547,2]
[338531765,1726721456476,-669.2,0.00013547,2]
[338531766,1726721456485,-1162.75,0.00013547,2]
[338531767,1726721456494,-500.0,0.00013547,2]
[338531768,1726721456503,-151.0,0.00013547,2]
[338531769,1726721456512,-500.0,0.00013547,2]
[338531770,1726721456521,-500.0,0.00013547,2]
[338531771,1726721456531,-500.0,0.00013547,2]
[338531772,1726721456539,-1305.31,0.00013547,2]
[338531773,1726721456549,-151.0,0.00013547,2]
[338531774,1726721456560,-1911.46,0.00013547,2]
[338531775,1726721456570,-500.0,0.00013547,2]
[338531776,1726721456580,-500.0,0.00013547,2]
[338531777,1726721456589,-500.0,0.00013547,2]
[338531778,1726721456598,-1733.02,0.00013547,2]
[338531779,1726721456608,-500.0,0.00013547,2]
[338531780,1726721456618,-1925.43,0.00013547,2]
[338531781,1726721456628,-607.97,0.00013547,2]
[338531782,1726721456638,-1565.1,0.00013547,2]
[338531783,1726721456649,-1292.0,0.000136,2]
[338531784,1726721456658,-200.0,0.00013603,2]
[338531785,1726721456668,-338.36,0.00013624,2]
[338531786,1726721456677,-840.0,0.00013666,2]
[338531787,1726721456686,-10000.0,0.00013693,2]
[338531788,1726721456698,-312.54,0.00013698,2]
[338531789,1726721456708,-1331.64,0.00013698,2]
[338531790,1726721456718,-1331.64,0.00013698,2]
[338531791,1726721456727,-1331.64,0.00013698,2]
[338531792,1726721456737,-500.0,0.00013699,2]
[338531793,1726721456746,-500.0,0.00013699,2]
[338531794,1726721456756,-2000.0,0.00013699,2]
[338531795,1726721456765,-500.0,0.00013699,2]
[338531796,1726721456775,-800.0,0.00013699,2]
[338531797,1726721456784,-800.0,0.00013699,2]
[338531798,1726721456794,-800.0,0.00013699,2]
[338531799,1726721456804,-800.0,0.00013699,2]
[338531800,1726721456813,-800.0,0.00013699,2]
[338531801,1726721456822,-800.0,0.00013699,2]
[338531802,1726721456831,-800.0,0.00013699,2]
[338531803,1726721456840,-800.0,0.00013699,2]
[338531804,1726721456852,-1000.0,0.00013699,2]
[338531805,1726721456861,-1000.0,0.00013699,2]
[338531806,1726721456870,-1000.0,0.00013699,2]
[338531807,1726721456879,-1000.0,0.00013699,2]
[338531808,1726721456889,-1000.0,0.00013699,2]
[338531809,1726721456898,-1000.0,0.00013699,2]
[338531810,1726721456907,-1000.0,0.00013699,2]
[338531811,1726721456916,-1000.0,0.00013699,2]
[338531812,1726721456930,-1000.0,0.00013699,2]
[338531813,1726721456939,-1000.0,0.00013699,2]
[338531814,1726721456949,-1000.0,0.00013699,2]
[338531815,1726721456958,-1000.0,0.00013699,2]
[338531816,1726721456968,-1000.0,0.00013699,2]
[338531817,1726721456977,-1000.0,0.00013699,2]
[338531818,1726721456986,-1000.0,0.00013699,2]
[338531819,1726721456995,-1000.0,0.00013699,2]
[338531820,1726721457004,-1000.0,0.00013699,2]
[338531821,1726721457015,-1000.0,0.00013699,2]
[338531822,1726721457024,-1000.0,0.00013699,2]
[338531823,1726721457033,-1000.0,0.00013699,2]
[338531824,1726721457043,-1000.0,0.00013699,2]
[338531825,1726721457054,-1000.0,0.00013699,2]
[338531826,1726721457064,-1000.0,0.00013699,2]
[338531827,1726721457074,-1000.0,0.00013699,2]
[338531828,1726721457083,-1000.0,0.00013699,2]
[338531829,1726721457092,-1000.0,0.00013699,2]
[338531830,1726721457101,-1000.0,0.00013699,2]
[338531831,1726721457111,-1000.0,0.00013699,2]
[338531832,1726721457120,-1000.0,0.00013699,2]
[338531833,1726721457129,-1000.0,0.00013699,2]
[338531834,1726721457138,-1000.0,0.00013699,2]
[338531835,1726721457147,-1000.0,0.00013699,2]
[338531836,1726721457156,-1000.0,0.00013699,2]
[338531837,1726721457166,-1000.0,0.00013699,2]
[338531838,1726721457175,-1000.0,0.00013699,2]
[338531839,1726721457184,-1000.0,0.00013699,2]
[338531840,1726721457193,-1000.0,0.00013699,2]
[338531841,1726721457202,-1000.0,0.00013699,2]
[338531842,1726721457211,-1000.0,0.00013699,2]
[338531843,1726721457221,-1000.0,0.00013699,2]
[338531844,1726721457230,-1000.0,0.00013699,2]
[338531845,1726721457239,-1000.0,0.00013699,2]
[338531846,1726721457248,-1000.0,0.00013699,2]
[338531847,1726721457258,-1000.0,0.00013699,2]
[338531848,1726721457267,-1000.0,0.00013699,2]
[338531849,1726721457276,-1000.0,0.00013699,2]
[338531850,1726721457285,-1000.0,0.00013699,2]
[338531851,1726721457294,-1000.0,0.00013699,2]
[338531852,1726721457303,-1000.0,0.00013699,2]
[338531853,1726721457311,-1000.0,0.00013699,2]
[338531854,1726721457320,-1000.0,0.00013699,2]
[338531855,1726721457330,-1000.0,0.00013699,2]
[338531856,1726721457338,-1000.0,0.00013699,2]
[338531857,1726721457347,-1000.0,0.00013699,2]
[338531858,1726721457357,-1000.0,0.00013699,2]
[338531859,1726721457366,-1000.0,0.00013699,2]
[338531860,1726721457375,-620.0,0.00013699,2]
[338531861,1726721457385,-569.41,0.00013699,2]
[338531862,1726721457394,-151.0,0.00013699,2]
[338531863,1726721457403,-151.0,0.00013699,2]
[338531864,1726721457413,-151.0,0.00013699,2]
[338531865,1726721457422,-246.08,0.00013699,2]
[338531866,1726721457431,-800.0,0.00013699,2]
[338531867,1726721457440,-197.03,0.00013699,2]
[338531868,1726721457449,-151.0,0.00013699,2]
[338531869,1726721457458,-151.0,0.00013699,2]
[338531870,1726721457468,-232.100643,0.00013699,2]
[338531871,1726721457477,-800.0,0.00013699,2]
[338531872,1726721457486,-800.0,0.00013699,2]
[338531873,1726721457495,-800.0,0.00013699,2]
[338531874,1726721457504,-152.88,0.00013699,2]
[338531875,1726721457514,-800.0,0.00013699,2]
[338531876,1726721457523,-800.0,0.00013699,2]
[338531877,1726721457531,-150.0,0.00013699,2]
[338531878,1726721457540,-151.0,0.00013699,2]
[338531879,1726721457549,-151.0,0.00013699,2]
[338531880,1726721457558,-151.0,0.00013699,2]
[338531881,1726721457567,-9570.77,0.0001372,2]
[338531882,1726721457577,-7508.21,0.0001372,2]
[338531883,1726721457586,-1753.74,0.0001372,2]
[338531884,1726721457595,-5398.62,0.0001372,2]
[338531885,1726721457607,-3072.27,0.0001372,2]
[338531886,1726721457621,-500.0,0.0001372,2]
[338531887,1726721457633,-7199.78,0.0001372,2]
[338531888,1726721457644,-1066.3,0.0001372,2]
[338531889,1726721457656,-4515.3,0.0001372,2]
[338531890,1726721457669,-5983.57,0.0001372,2]
[338531891,1726721457682,-16126.74,0.0001372,2]
[338531892,1726721457695,-1532.1,0.0001372,2]
[338531893,1726721457708,-500.0,0.0001372,2]
[338531894,1726721457721,-1307.0,0.0001372,2]
[338531895,1726721457735,-4721.83,0.0001372,2]
[338531896,1726721457749,-500.0,0.0001372,2]
[338531897,1726721457762,-1100.01,0.0001372,2]
[338531898,1726721457774,-1156.05,0.0001372,2]
[338531899,1726721457787,-3682.71,0.0001372,2]
[338531900,1726721457798,-1544.08,0.0001372,2]
[338531901,1726721457810,-2120.78,0.0001372,2]
[338531902,1726721457823,-500.0,0.0001372,2]
[338531903,1726721457835,-920.53,0.0001372,2]
[338531904,1726721457851,-1663.81,0.0001372,2]
[338531905,1726721457862,-1016.51,0.0001372,2]
[338531906,1726721457872,-2108.0,0.0001372,2]
[338531907,1726721457884,-1253.48,0.0001372,2]
[338531908,1726721457896,-674.33,0.0001372,2]
[338531909,1726721457908,-803.69,0.00013721,2]
[338531910,1726721457923,-1045.08,0.00013721,2]
[338531911,1726721457936,-638.43,0.00013721,2]
[338531912,1726721457949,-656.17,0.00013721,2]
[338531913,1726721457962,-2128.72,0.00013721,2]
[338531914,1726721457975,-454.31,0.00013721,2]
[338531915,1726721457986,-636.27,0.00013721,2]
[338531916,1726721457996,-1527.71,0.00013721,2]
[338531917,1726721458007,-546.15,0.00013721,2]
[338531918,1726721458018,-500.0,0.00013721,2]
[338531919,1726721458032,-500.0,0.00013721,2]
[338531920,1726721458044,-500.0,0.00013721,2]
[338531921,1726721458055,-2334.98,0.00013721,2]
[338531922,1726721458065,-1812.12,0.00013721,2]
[338531923,1726721458078,-2137.06,0.00013721,2]
[338531924,1726721458089,-529.5,0.00013721,2]
[338531925,1726721458102,-829.56,0.00013721,2]
[338531926,1726721458114,-1002.34,0.00013721,2]
[338531927,1726721458125,-647.32,0.00013721,2]
[338531928,1726721458135,-1107.68,0.00013721,2]
[338531929,1726721458147,-550.01091709,0.00013721,2]
[338531930,1726721458158,-1200.49,0.00013721,2]
[338531931,1726721458169,-938.95,0.00013721,2]
[338531932,1726721458181,-500.0,0.00013721,2]
[338531933,1726721458192,-570.06,0.00013721,2]
[338531934,1726721458203,-2438.23,0.00013721,2]
[338531935,1726721458216,-1723.42,0.00013721,2]
[338531936,1726721458227,-1549.04,0.00013721,2]
[338531937,1726721458238,-965.9,0.00013721,2]
[338531938,1726721458250,-689.45,0.00013721,2]
[338531939,1726721458261,-1555.36,0.00013721,2]
[338531940,1726721458272,-500.0,0.00013721,2]
[338531941,1726721458284,-833.73,0.00013721,2]
[338531942,1726721458295,-500.0,0.00013721,2]
[338531943,1726721458306,-1285.11,0.00013721,2]
[338531944,1726721458318,-500.0,0.00013721,2]
[338531945,1726721458331,-500.0,0.00013721,2]
[338531946,1726721458345,-3075.0,0.00013721,2]
[338531947,1726721458357,-25658.01,0.00013721,2]
[338531948,1726721458369,-513.63,0.00013721,2]
[338531949,1726721458381,-677.8,0.00013721,2]
[338531950,1726721458393,-500.0,0.00013721,2]
[338531951,1726721458404,-500.0,0.00013721,2]
[338531952,1726721458415,-631.78,0.00013721,2]
[338531953,1726721458429,-500.0,0.00013721,2]
[338531954,1726721458441,-55626.13,0.00013721,2]
[338531955,1726721458455,-809.94,0.00013721,2]
[338531956,1726721458466,-559.03,0.00013721,2]
[338531957,1726721458477,-1891.11,0.00013721,2]
[338531958,1726721458488,-589.63,0.00013721,2]
[338531959,1726721458500,-519.42,0.00013721,2]
[338531960,1726721458512,-500.0,0.00013721,2]
[338531961,1726721458523,-967.44,0.00013721,2]
[338531962,1726721458534,-571.18,0.00013721,2]
[338531963,1726721458546,-500.0,0.00013721,2]
[338531964,1726721458558,-500.0,0.00013721,2]
[338531965,1726721458569,-706.86,0.00013721,2]
[338531966,1726721458579,-500.0,0.00013721,2]
[338531967,1726721458590,-12266.92,0.00013721,2]
[338531968,1726721458601,-667.44,0.00013721,2]
[338531969,1726721458613,-500.0,0.00013721,2]
[338531970,1726721458625,-727.92,0.00013721,2]
[338531971,1726721458635,-684.68,0.00013721,2]
[338531972,1726721458647,-1449.11,0.00013721,2]
[338531973,1726721458658,-2133.44,0.00013721,2]
[338531974,1726721458670,-1630.44,0.00013721,2]
[338531975,1726721458682,-633.88,0.00013721,2]
[338531976,1726721458694,-500.0,0.00013721,2]
[338531977,1726721458705,-500.0,0.00013721,2]
[338531978,1726721458717,-520.15,0.00013721,2]
[338531979,1726721458740,-500.0,0.00013721,2]
[338531980,1726721458751,-890.98,0.00013721,2]
[338531981,1726721458763,-3075.27,0.00013721,2]
[338531982,1726721458773,-500.0,0.00013721,2]
[338531983,1726721458784,-4865.01,0.00013721,2]
[338531984,1726721458795,-464.81,0.00013721,2]
[338531985,1726721458806,-500.0,0.00013721,2]
[338531986,1726721458816,-500.0,0.00013721,2]
[338531987,1726721458828,-3909.77,0.00013721,2]
[338531988,1726721458839,-9570.69524648,0.00013728,2]
[338531989,1726721458852,-151.0,0.000138,2]
[338531990,1726721458863,-151.0,0.000138,2]
[338531991,1726721458874,-151.0,0.000138,2]
[338531992,1726721458885,-151.0,0.000138,2]
[338531993,1726721458896,-237103.429837,0.000138,2]
[338531994,1726721458907,-170.77615,0.000138,2]
[338531995,1726721458921,-151.0,0.000138,2]
[338531996,1726721458932,-5614.92,0.00013818,2]
[338531997,1726721458943,-839.46,0.00013818,2]
[338531998,1726721458954,-5838.77,0.00013818,2]
[338531999,1726721458966,-8254.25,0.00013818,2]
[338532000,1726721458977,-500.0,0.00013818,2]
[338532001,1726721458988,-500.0,0.00013818,2]
[338532002,1726721458999,-8367.19,0.00013818,2]
[338532003,1726721459010,-500.0,0.00013818,2]
[338532004,1726721459021,-500.0,0.00013818,2]
[338532005,1726721459032,-642.38341098,0.0001382,2]
[338532006,1726721459044,-500.0,0.0001382,2]
[338532007,1726721459056,-500.0,0.0001382,2]
[338532008,1726721459068,-500.0,0.0001382,2]
[338532009,1726721459079,-500.0,0.0001382,2]
[338532010,1726721459090,-873.67,0.0001382,2]
[338532011,1726721459101,-500.0,0.0001382,2]
[338532012,1726721459112,-3593.7,0.0001382,2]
[338532013,1726721459122,-500.0,0.0001382,2]
[338532014,1726721459133,-500.0,0.0001382,2]
[338532015,1726721459144,-1055.62,0.0001382,2]
[338532016,1726721459154,-500.0,0.0001382,2]
[338532017,1726721459165,-500.0,0.0001382,2]
[338532018,1726721459176,-3674.94,0.0001382,2]
[338532019,1726721459188,-3586.59,0.0001382,2]
[338532020,1726721459198,-500.0,0.0001382,2]
[338532021,1726721459209,-500.0,0.0001382,2]
[338532022,1726721459221,-651.72,0.0001382,2]
[338532023,1726721459231,-500.0,0.0001382,2]
[338532024,1726721459242,-5850.28,0.0001382,2]
[338532025,1726721459252,-1382.02,0.0001382,2]
[338532026,1726721459262,-2255.74,0.0001382,2]
[338532027,1726721459272,-2984.89,0.0001382,2]
[338532028,1726721459282,-2539.01,0.0001382,2]
[338532029,1726721459292,-1228.99,0.0001382,2]
[338532030,1726721459303,-500.0,0.0001382,2]
[338532031,1726721459313,-864.0,0.0001382,2]
[338532032,1726721459323,-1567.12,0.0001382,2]
[338532033,1726721459333,-500.0,0.0001382,2]
[338532034,1726721459344,-2137.82,0.0001382,2]
[338532035,1726721459355,-2542.22,0.0001382,2]
[338532036,1726721459365,-500.0,0.0001382,2]
[338532037,1726721459375,-1031.79,0.0001382,2]
[338532038,1726721459386,-500.0,0.0001382,2]
[338532039,1726721459397,-500.0,0.0001382,2]
[338532040,1726721459407,-500.0,0.0001382,2]
[338532041,1726721459418,-500.0,0.0001382,2]
[338532042,1726721459429,-1979.95,0.0001382,2]
[338532043,1726721459439,-718.39,0.0001382,2]
[338532044,1726721459449,-500.0,0.0001382,2]
[338532045,1726721459460,-2404.47,0.0001382,2]
[338532046,1726721459472,-3103.02,0.0001382,2]
[338532047,1726721459483,-796.58,0.0001382,2]
[338532048,1726721459493,-500.0,0.0001382,2]
[338532049,1726721459503,-500.0,0.0001382,2]
[338532050,1726721459514,-1970.3,0.0001382,2]
[338532051,1726721459526,-500.0,0.0001382,2]
[338532052,1726721459537,-500.0,0.0001382,2]
[338532053,1726721459547,-852.6,0.0001382,2]
[338532054,1726721459559,-500.0,0.0001382,2]
[338532055,1726721459570,-1157.46,0.0001382,2]
[338532056,1726721459580,-500.0,0.0001382,2]
[338532057,1726721459591,-500.0,0.0001382,2]
[338532058,1726721459601,-500.0,0.0001382,2]
[338532059,1726721459611,-4549.72,0.0001382,2]
[338532060,1726721459623,-500.0,0.0001382,2]
[338532061,1726721459634,-500.0,0.0001382,2]
[338532062,1726721459647,-500.0,0.0001382,2]
[338532063,1726721459658,-500.0,0.0001382,2]
[338532064,1726721459669,-500.0,0.0001382,2]
[338532065,1726721459679,-500.0,0.0001382,2]
[338532066,1726721459690,-1025.3,0.0001382,2]
[338532067,1726721459700,-500.0,0.0001382,2]
[338532068,1726721459710,-500.0,0.0001382,2]
[338532069,1726721459724,-500.0,0.0001382,2]
[338532070,1726721459734,-500.0,0.0001382,2]
[338532071,1726721459745,-500.0,0.0001382,2]
[338532072,1726721459756,-500.0,0.0001382,2]
[338532073,1726721459766,-5067.65,0.0001382,2]
[338532074,1726721459777,-500.0,0.0001382,2]
[338532075,1726721459789,-2336.68,0.0001382,2]
[338532076,1726721459800,-500.0,0.0001382,2]
[338532077,1726721459811,-1015.0,0.0001382,2]
[338532078,1726721459821,-2447.39,0.0001382,2]
[338532079,1726721459832,-439.14292757,0.0001382,2]
[338532080,1726721459845,-500.0,0.0001382,2]
[338532081,1726721459856,-500.0,0.0001382,2]
[338532082,1726721459866,-500.0,0.0001382,2]
[338532083,1726721459876,-1390.48,0.0001382,2]
[338532084,1726721459887,-665.9,0.0001382,2]
[338532085,1726721459898,-500.0,0.0001382,2]
[338532086,1726721459908,-552.52,0.0001382,2]
[338532087,1726721459920,-1747.39,0.0001382,2]
[338532088,1726721459931,-500.0,0.0001382,2]
[338532089,1726721459941,-538.3,0.0001382,2]
[338532090,1726721459952,-500.0,0.0001382,2]
[338532091,1726721459964,-2036.19,0.0001382,2]
[338532092,1726721459974,-500.0,0.0001382,2]
[338532093,1726721459985,-820.59,0.0001382,2]
[338532094,1726721459997,-500.0,0.0001382,2]
[338532095,1726721460008,-500.0,0.0001382,2]
[338532096,1726721460018,-2577.48,0.0001382,2]
[338532097,1726721460029,-500.0,0.0001382,2]
[338532098,1726721460040,-500.0,0.0001382,2]
[338532099,1726721460052,-940.21,0.0001382,2]
[338532100,1726721460064,-500.0,0.0001382,2]
[338532101,1726721460074,-500.0,0.0001382,2]
[338532102,1726721460086,-500.0,0.0001382,2]
[338532103,1726721460097,-4295.5,0.0001382,2]
[338532104,1726721460108,-2214.16,0.0001382,2]
[338532105,1726721460119,-804.83,0.0001382,2]
[338532106,1726721460130,-500.0,0.0001382,2]
[338532107,1726721460142,-5318.52,0.0001382,2]
[338532108,1726721460153,-2948.94,0.0001382,2]
[338532109,1726721460164,-500.0,0.0001382,2]
[338532110,1726721460175,-883.11,0.0001382,2]
[338532111,1726721460186,-2430.05,0.0001382,2]
[338532112,1726721460197,-1347.59,0.0001382,2]
[338532113,1726721460208,-273.07977686,0.0001382,2]
[338532114,1726721460220,-500.0,0.0001382,2]
[338532115,1726721460231,-1784.36,0.0001382,2]
[338532116,1726721460242,-543.65,0.0001382,2]
[338532117,1726721460253,-500.0,0.0001382,2]
[338532118,1726721460265,-4898.56,0.0001382,2]
[338532119,1726721460276,-5474.71,0.0001382,2]
[338532120,1726721460287,-310.9996645,0.0001382,2]
[338532121,1726721460298,-3076.01,0.0001382,2]
[338532122,1726721460309,-1838.4,0.0001382,2]
[338532123,1726721460319,-2927.56,0.0001382,2]
[338532124,1726721460331,-3222.22,0.0001382,2]
[338532125,1726721460341,-500.0,0.0001382,2]
[338532126,1726721460352,-9867.63,0.0001382,2]
[338532127,1726721460363,-1000.0,0.0001382,2]
[338532128,1726721460375,-500.0,0.0001382,2]
[338532129,1726721460386,-3670.49,0.0001382,2]
[338532130,1726721460397,-3218.25,0.0001382,2]
[338532131,1726721460409,-2599.93,0.0001382,2]
[338532132,1726721460420,-500.0,0.00013821,2]
[338532133,1726721460431,-500.0,0.00013821,2]
[338532134,1726721460442,-500.0,0.00013821,2]
[338532135,1726721460453,-500.0,0.00013821,2]
[338532136,1726721460464,-1036.42,0.00013821,2]
[338532137,1726721460476,-1814.59,0.00013821,2]
[338532138,1726721460486,-568.03,0.00013821,2]
[338532139,1726721460498,-684.07,0.00013821,2]
[338532140,1726721460509,-500.0,0.00013821,2]
[338532141,1726721460520,-1592.43,0.00013821,2]
[338532142,1726721460531,-500.0,0.00013821,2]
[338532143,1726721460542,-1457.88,0.00013821,2]
[338532144,1726721460553,-500.0,0.00013821,2]
[338532145,1726721460565,-1465.29,0.00013821,2]
[338532146,1726721460576,-1173.04,0.00013821,2]
[338532147,1726721460586,-1533.0,0.00013821,2]
[338532148,1726721460597,-554.01,0.00013821,2]
[338532149,1726721460608,-500.0,0.00013821,2]
[338532150,1726721460618,-727.95,0.00013821,2]
[338532151,1726721460629,-500.0,0.00013821,2]
[338532152,1726721460640,-500.0,0.00013821,2]
[338532153,1726721460651,-500.0,0.00013821,2]
[338532154,1726721460661,-500.0,0.00013821,2]
[338532155,1726721460672,-500.0,0.00013821,2]
[338532156,1726721460682,-500.0,0.00013821,2]
[338532157,1726721460693,-524.98,0.00013821,2]
[338532158,1726721460704,-203.34714531,0.00013821,2]
[338532159,1726721460715,-890.61,0.00013821,2]
[338532160,1726721460727,-750.88,0.00013821,2]
[338532161,1726721460739,-150.0,0.00013821,2]
[338532162,1726721460750,-500.0,0.00013821,2]
[338532163,1726721460761,-500.0,0.00013821,2]
[338532164,1726721460773,-857.99,0.00013821,2]
[338532165,1726721460784,-651.41,0.00013821,2]
[338532166,1726721460795,-714.27,0.00013821,2]
[338532167,1726721460806,-1246.84,0.00013821,2]
[338532168,1726721460817,-1875.92,0.00013821,2]
[338532169,1726721460828,-580.24,0.00013821,2]
[338532170,1726721460841,-500.0,0.00013821,2]
[338532171,1726721460855,-1045.57,0.00013821,2]
[338532172,1726721460865,-500.0,0.00013821,2]
[338532173,1726721460876,-1994.98,0.00013821,2]
[338532174,1726721460887,-500.0,0.00013821,2]